fUSD/lending_fUSD_20250823
["ID","MTS","AMOUNT","RATE_DAILY","PERIOD"]
[380974856,1755914126811,-151.52766229,0.00012708,2]
[380974857,1755914126848,-96.94467542,0.00012709,2]
[380974858,1755914133833,-1097.09,0.00012709,2]
[380974859,1755914140876,-400.0,0.00012709,2]
[380974860,1755914147961,-150.0,0.00012649,2]
[380974861,1755914147997,-100.0,0.00012709,2]
[380974862,1755914155435,-400.0,0.00012709,2]
[380974864,1755914163188,-400.0,0.00012709,2]
[380974865,1755914171239,-400.0,0.00012709,2]
[380974866,1755914178483,-400.0,0.00012709,2]
[380974867,1755914185505,-522.7135478,0.00012709,2]
[380974868,1755914192652,-400.0,0.00012709,2]
[380974869,1755914199653,-378.87591961,0.00012709,2]
[380974870,1755914207150,-400.0,0.00012709,2]
[380974871,1755914214217,-400.0,0.00012709,2]
[380974872,1755914221302,-400.0,0.00012709,2]
[380974873,1755914228869,-724.1,0.00012709,2]
[380974874,1755914236057,-549.15,0.00012709,2]
[380974875,1755914243707,-614.27,0.00012709,2]
[380974876,1755914250804,-400.0,0.00012709,2]
[380974877,1755914258251,-400.0,0.00012709,2]
[380974878,1755914265360,-400.0,0.00012709,2]
[380974879,1755914273321,-400.0,0.00012709,2]
[380974880,1755914280173,-118.89585717,0.00012709,2]
[380974881,1755914280209,-162.20828566,0.00013021,2]
[380974882,1755914287258,-400.0,0.00012587,2]
[380974883,1755914295231,-240.0,0.00012587,2]
[380974884,1755914295273,-57.14,0.00013021,2]
[380974885,1755914306535,-30.65171434,0.00013021,2]
[380974886,1755914306564,-161.91657132,0.00013246,2]
[380974887,1755914306617,-138.08342868,0.00013246,2]
[380974888,1755914314076,-151.2,0.00013247,2]
[380974889,1755914314114,-97.6,0.00013247,2]
[380974890,1755914321406,-99.79,0.00013229,2]
[380974891,1755914321455,-200.42,0.00013229,2]
[380974892,1755914328822,-53.3,0.00013247,2]
[380974893,1755914328850,-301.92,0.00013273,2]
[380974894,1755914328878,-302.81,0.00013273,2]
[380974895,1755914328968,-373.52,0.00013387,2]
[380974896,1755914336349,-207.89337302,0.00013252,2]
[380974897,1755914336372,-95.04662698,0.00013252,2]
[380974898,1755914343932,-52.15,0.00013387,2]
[380974899,1755914343978,-295.7,0.00013387,2]
[380974900,1755914351559,-400.0,0.00012701,2]
[380974901,1755914359722,-400.0,0.00012701,2]
[380974902,1755914366891,-169.36531963,0.00012701,2]
[380974903,1755914369638,40948.50989266,0.00028,120]
[380974904,1755914373955,-199.77412706,0.00012701,2]
[380974905,1755914388894,-295.7,0.00012701,2]
[380974906,1755914410274,-35.16055331,0.00012701,2]
[380974907,1755914410324,-302.47033935,0.00012861,2]
[380974908,1755914417334,-7.52966065,0.00012861,2]
[380974909,1755914417368,-134.9406787,0.00012861,2]
[380974910,1755914417414,-115.0593213,0.00012861,2]
[380974911,1755914424378,-150.0,0.00012861,2]
[380974912,1755914424421,-100.0,0.00013021,2]
[380974913,1755914429770,160.0,0.00012592,7]
[380974914,1755914431862,-114.92,0.00012592,2]
[380974915,1755914431890,-170.16,0.00012592,2]
[380974916,1755914438981,-65.84,0.00013021,2]
[380974917,1755914439013,-268.32,0.00013028,2]
[380974918,1755914446071,-33.8,0.00013028,2]
[380974919,1755914446106,-29.43,0.00013028,2]
[380974920,1755914446161,-273.54,0.00013028,2]
[380974921,1755914453145,-400.0,0.00013107,2]
[380974922,1755914526233,-151.2,0.00012555,2]
[380974923,1755914566674,288.0,0.00028767,120]
[380974924,1755914578381,165.0,0.00028767,120]
[380974925,1755914583104,-373.52,0.00012226,2]
[380974926,1755914590173,-301.92,0.00012226,2]
[380974927,1755914597717,-302.81,0.00012226,2]
[380974928,1755914627646,-21.75,0.00012226,2]
[380974929,1755914627687,-164.39337302,0.00012495,2]
[380974930,1755914641211,222.0,0.00028767,120]
[380974931,1755914648721,155.0,0.00028767,120]
[380974932,1755914670154,-264.05,0.00012185,2]
[380974933,1755914677223,-161.91657132,0.00012185,2]
[380974934,1755914684333,-200.0,0.00012185,2]
[380974935,1755914691380,-200.42,0.00012185,2]
[380974936,1755914698943,-278.78,0.00012185,2]
[380974937,1755914706033,-400.0,0.00012185,2]
[380974938,1755914713054,-162.20828566,0.00012185,2]
[380974939,1755914720542,-292.1689972,0.00012169,2]
[380974940,1755914727633,-209.48,0.00012169,2]
[380974941,1755914734768,-400.0,0.00012169,2]
[380974942,1755914742292,-354.36,0.00012169,2]
[380974943,1755914749304,-400.0,0.00012169,2]
[380974945,1755914777433,4050.0,0.0002876,120]
[380974946,1755914817039,-268.32,0.00012161,2]
[380974947,1755914824116,-273.54,0.00012161,2]
[380974948,1755914831264,-400.0,0.00012161,2]
[380974950,1755914838352,-25.5,0.00012161,2]
[380974951,1755914838382,-183.7189972,0.00012169,2]
[380974952,1755914838446,-12.6920056,0.00012169,2]
[380974953,1755914845751,-28.89514302,0.00012185,2]
[380974954,1755914845779,-114.09522333,0.00012495,2]
[380974955,1755914845807,-6.85,0.00012555,2]
[380974956,1755914845871,-100.3192673,0.00012558,2]
[380974957,1755914852801,-57.7307327,0.00012558,2]
[380974958,1755914852828,-92.1385346,0.00012562,2]
[380974959,1755914852871,-65.9114654,0.00012562,2]
[380974960,1755914859842,-78.65,0.00012565,2]
[380974961,1755914859865,-79.4,0.00012565,2]
[380974971,1755915031572,-355.1249811,0.00012176,2]
[380974973,1755915031584,-1478.3550189,0.00012176,2]
[380974975,1755915031594,-172.45859217,0.00012565,2]
[380974976,1755915031603,-158.05,0.00012568,2]
[380974977,1755915031614,-150.0,0.00012569,2]
[380974978,1755915031624,-310.0,0.0001257,2]
[380974979,1755915031634,-250.0,0.0001257,2]
[380974980,1755915031644,-158.05,0.00012572,2]
[380974981,1755915031653,-250.0,0.00012575,2]
[380974982,1755915031663,-158.05,0.00012575,2]
[380974983,1755915031672,-158.05,0.00012578,2]
[380974984,1755915031682,-155.0,0.00012581,2]
[380974985,1755915031691,-158.05,0.00012582,2]
[380974986,1755915031701,-158.05,0.00012585,2]
[380974987,1755915031710,-158.05,0.00012588,2]
[380974988,1755915031720,-158.05,0.00012592,2]
[380974989,1755915031730,-158.05,0.00012595,2]
[380974990,1755915031741,-158.05,0.00012598,2]
[380974991,1755915031751,-158.05,0.00012602,2]
[380974992,1755915031761,-158.05,0.00012605,2]
[380974993,1755915031770,-158.05,0.00012608,2]
[380974994,1755915031780,-158.05,0.00012611,2]
[380974995,1755915031789,-158.05,0.00012615,2]
[380974996,1755915031799,-1200.0,0.00012618,2]
[380975012,1755915032065,-158.05,0.00012618,2]
[380975013,1755915032075,-1027.56961557,0.00012896,2]
[380975015,1755915032087,-448.86461443,0.00012896,2]
[380975016,1755915032097,-249.0,0.00013026,2]
[380975017,1755915032107,-151.62,0.00013027,2]
[380975018,1755915032118,-150.0,0.00013027,2]
[380975019,1755915032127,-300.0,0.00013027,2]
[380975020,1755915032137,-300.0,0.00013027,2]
[380975021,1755915032147,-300.25,0.00013073,2]
[380975022,1755915032156,-303.86,0.00013073,2]
[380975023,1755915032166,-302.27,0.00013087,2]
[380975024,1755915032176,-22.29,0.00013107,2]
[380975025,1755915032186,-428.31,0.00013107,2]
[380975026,1755915032195,-416.51,0.00013107,2]
[380975027,1755915032205,-152.03,0.00013107,2]
[380975028,1755915032215,-303.47,0.00013107,2]
[380975029,1755915032225,-516.2534842,0.00013214,2]
[380975030,1755915032234,-304.32,0.00013279,2]
[380975031,1755915032244,-300.87,0.00013313,2]
[380975032,1755915032254,-123.34,0.00013387,2]
[380975033,1755915032267,-428.85390137,0.00013407,2]
[380975034,1755915032292,-1601.99850156,0.00013407,2]
[380975035,1755915032303,-1823.89238706,0.00013407,2]
[380975036,1755915032319,-903.08350281,0.00013407,2]
[380975037,1755915032329,-239.0,0.00013435,2]
[380975038,1755915032340,-2438.5306109,0.00013461,2]
[380975039,1755915032352,-3361.4693891,0.00013461,2]
[380975040,1755915032362,-232.27029799,0.00013469,2]
[380975041,1755915032374,-1448.70963963,0.00013469,2]
[380975042,1755915032387,-4119.02006238,0.00013469,2]
[380975043,1755915032397,-5800.0,0.00013478,2]
[380975044,1755915032407,-1000.0,0.00013478,2]
[380975045,1755915032417,-1000.0,0.00013478,2]
[380975046,1755915032426,-1000.0,0.00013478,2]
[380975047,1755915032436,-1000.0,0.00013478,2]
[380975048,1755915032445,-179.0,0.00013478,2]
[380975049,1755915032454,-1000.0,0.00013478,2]
[380975050,1755915032464,-1000.0,0.00013478,2]
[380975051,1755915032473,-1000.0,0.00013478,2]
[380975052,1755915032483,-1000.0,0.00013478,2]
[380975053,1755915032492,-1000.0,0.00013478,2]
[380975054,1755915032502,-1000.0,0.00013478,2]
[380975055,1755915032511,-1000.0,0.00013478,2]
[380975056,1755915032521,-1000.0,0.00013478,2]
[380975057,1755915032530,-1000.0,0.00013478,2]
[380975058,1755915032540,-1000.0,0.00013478,2]
[380975059,1755915032550,-1000.0,0.00013478,2]
[380975060,1755915032560,-1000.0,0.00013478,2]
[380975061,1755915032570,-1000.0,0.00013478,2]
[380975062,1755915032580,-1000.0,0.00013478,2]
[380975063,1755915032589,-1000.0,0.00013478,2]
[380975065,1755915032599,-1000.0,0.00013478,2]
[380975066,1755915032609,-1000.0,0.00013478,2]
[380975067,1755915032620,-1000.0,0.00013478,2]
[380975068,1755915032629,-1000.0,0.00013478,2]
[380975069,1755915032639,-1000.0,0.00013478,2]
[380975070,1755915032649,-1000.0,0.00013478,2]
[380975071,1755915032660,-1000.0,0.00013478,2]
[380975072,1755915032670,-1000.0,0.00013478,2]
[380975073,1755915032679,-1000.0,0.00013478,2]
[380975074,1755915032689,-1000.0,0.00013478,2]
[380975075,1755915032698,-1000.0,0.00013478,2]
[380975076,1755915032708,-1000.0,0.00013478,2]
[380975077,1755915032718,-1000.0,0.00013478,2]
[380975078,1755915032728,-1000.0,0.00013478,2]
[380975079,1755915032738,-1000.0,0.00013478,2]
[380975080,1755915032747,-1000.0,0.00013478,2]
[380975081,1755915032757,-1000.0,0.00013478,2]
[380975082,1755915032767,-1000.0,0.00013478,2]
[380975083,1755915032777,-1000.0,0.00013478,2]
[380975084,1755915032787,-1000.0,0.00013478,2]
[380975085,1755915032797,-1000.0,0.00013478,2]
[380975086,1755915032807,-1000.0,0.00013478,2]
[380975087,1755915032816,-1000.0,0.00013478,2]
[380975088,1755915032826,-1000.0,0.00013478,2]
[380975089,1755915032836,-1000.0,0.00013478,2]
[380975090,1755915032846,-1000.0,0.00013478,2]
[380975091,1755915032855,-1000.0,0.00013478,2]
[380975092,1755915032866,-1000.0,0.00013478,2]
[380975093,1755915032876,-1000.0,0.00013478,2]
[380975094,1755915032886,-1000.0,0.00013478,2]
[380975095,1755915032895,-1000.0,0.00013478,2]
[380975096,1755915032905,-1000.0,0.00013478,2]
[380975097,1755915032914,-1000.0,0.00013478,2]
[380975098,1755915032927,-1000.0,0.00013478,2]
[380975099,1755915032939,-1000.0,0.00013478,2]
[380975100,1755915032949,-5800.0,0.00013486,2]
[380975101,1755915032960,-5400.0,0.00013495,2]
[380975102,1755915032970,-1000.0,0.00013502,2]
[380975103,1755915032979,-5000.0,0.00013503,2]
[380975104,1755915032989,-417.38,0.00013504,2]
[380975105,1755915032999,-305.13,0.00013504,2]
[380975106,1755915033008,-417.93,0.00013504,2]
[380975107,1755915033018,-419.66,0.00013504,2]
[380975108,1755915033028,-425.74,0.00013504,2]
[380975109,1755915033038,-301.09,0.00013504,2]
[380975110,1755915033049,-424.45,0.00013504,2]
[380975111,1755915033059,-4227.20855403,0.00013512,2]
[380975112,1755915033070,-5800.0,0.0001352,2]
[380975113,1755915033080,-420.28,0.00013521,2]
[380975114,1755915033091,-422.22,0.00013521,2]
[380975115,1755915033102,-5800.0,0.00013529,2]
[380975116,1755915033112,-158.79918525,0.00013598,2]
[380975117,1755915033124,-6436.42578021,0.00013598,2]
[380975118,1755915033135,-160.62213093,0.00013598,2]
[380975119,1755915033145,-4043.0545,0.00013598,2]
[380975120,1755915033156,-231.0663,0.00013598,2]
[380975121,1755915033166,-1773.60225018,0.00013598,2]
[380975122,1755915033210,-1084.60883045,0.00013598,2]
[380975124,1755915037542,-355.31274187,0.00013598,2]
[380975125,1755915037597,-2348.2,0.00013598,2]
[380975126,1755915037652,-8449.50733096,0.00013598,2]
[380975127,1755915037663,-2017.33839418,0.00013598,2]
[380975128,1755915037765,-124.45052519,0.00013598,2]
[380975129,1755915037775,-2500.0,0.00013598,2]
[380975130,1755915037786,-500.0,0.00013673,2]
[380975131,1755915037796,-171.5617429,0.00013673,2]
[380975132,1755915037866,-328.4382571,0.00013673,2]
[380975133,1755915037877,-300.0,0.00013697,2]
[380975134,1755915037886,-239.05765816,0.00013697,2]
[380975135,1755915037897,-221.96225812,0.00013697,2]
[380975136,1755915037907,-263.50435299,0.00013697,2]
[380975138,1755915037916,-500.0,0.00013697,2]
[380975140,1755915037926,-500.0,0.00013697,2]
[380975141,1755915037936,-171.47635145,0.00013697,2]
[380975147,1755915038222,-280.00645983,0.00013697,2]
[380975148,1755915038232,-177.45133106,0.00013697,2]
[380975149,1755915038242,-401.28852087,0.00013698,2]
[380975150,1755915038252,-400.0,0.00013698,2]
[380975151,1755915038262,-400.65226085,0.00013698,2]
[380975152,1755915038275,-400.0,0.00013698,2]
[380975153,1755915038284,-400.0,0.00013698,2]
[380975154,1755915038293,-400.0,0.00013698,2]
[380975155,1755915038302,-400.0,0.00013698,2]
[380975156,1755915038313,-400.0,0.00013698,2]
[380975157,1755915038322,-400.0,0.00013698,2]
[380975158,1755915038331,-400.0,0.00013698,2]
[380975159,1755915038344,-400.0,0.00013698,2]
[380975160,1755915038353,-400.0,0.00013698,2]
[380975161,1755915038362,-400.0,0.00013698,2]
[380975162,1755915038373,-400.0,0.00013698,2]
[380975163,1755915038382,-401.62607665,0.00013698,2]
[380975164,1755915038391,-400.0,0.00013698,2]
[380975165,1755915038401,-170.61434335,0.00013698,2]
[380975166,1755915038410,-400.0,0.00013698,2]
[380975167,1755915038419,-400.0,0.00013698,2]
[380975168,1755915038429,-400.0,0.00013698,2]
[380975169,1755915038438,-400.0,0.00013698,2]
[380975170,1755915038447,-400.0,0.00013698,2]
[380975171,1755915038457,-400.0,0.00013698,2]
[380975172,1755915038467,-400.0,0.00013698,2]
[380975173,1755915038476,-400.0,0.00013698,2]
[380975174,1755915038486,-400.0,0.00013698,2]
[380975175,1755915038495,-400.0,0.00013698,2]
[380975176,1755915038504,-400.0,0.00013698,2]
[380975177,1755915038514,-400.0,0.00013698,2]
[380975178,1755915038523,-400.0,0.00013698,2]
[380975179,1755915038532,-282.53147434,0.00013698,2]
[380975180,1755915038542,-323.28252075,0.00013698,2]
[380975181,1755915038552,-608.46,0.00013698,2]
[380975182,1755915038561,-437.4,0.00013698,2]
[380975183,1755915038571,-400.0,0.00013698,2]
[380975184,1755915038580,-513.5,0.00013698,2]
[380975185,1755915038590,-424.27325459,0.00013698,2]
[380975186,1755915038599,-400.0,0.00013698,2]
[380975187,1755915038608,-400.0,0.00013698,2]
[380975188,1755915038620,-400.0,0.00013698,2]
[380975189,1755915038630,-400.0,0.00013698,2]
[380975190,1755915038640,-400.0,0.00013698,2]
[380975191,1755915038649,-400.0,0.00013698,2]
[380975192,1755915038659,-400.0,0.00013698,2]
[380975193,1755915038668,-400.0,0.00013698,2]
[380975194,1755915038677,-400.0,0.00013698,2]
[380975195,1755915038687,-400.0,0.00013698,2]
[380975196,1755915038696,-429.56,0.00013698,2]
[380975197,1755915038705,-400.0,0.00013698,2]
[380975198,1755915038714,-400.0,0.00013698,2]
[380975199,1755915038723,-400.0,0.00013698,2]
[380975200,1755915038733,-402.63,0.00013698,2]
[380975201,1755915038742,-400.0,0.00013698,2]
[380975202,1755915038752,-400.0,0.00013698,2]
[380975203,1755915038762,-400.0,0.00013698,2]
[380975204,1755915038772,-400.0,0.00013698,2]
[380975205,1755915038782,-400.0,0.00013698,2]
[380975206,1755915038791,-400.0,0.00013698,2]
[380975207,1755915038800,-400.0,0.00013698,2]
[380975208,1755915038810,-401.59,0.00013698,2]
[380975209,1755915038820,-400.0,0.00013698,2]
[380975210,1755915038831,-400.0,0.00013698,2]
[380975211,1755915038841,-400.0,0.00013698,2]
[380975212,1755915038851,-400.0,0.00013698,2]
[380975213,1755915038861,-400.0,0.00013698,2]
[380975214,1755915038872,-439.77,0.00013698,2]
[380975215,1755915038881,-400.0,0.00013698,2]
[380975216,1755915038891,-400.0,0.00013698,2]
[380975217,1755915038901,-432.83,0.00013698,2]
[380975218,1755915038911,-400.0,0.00013698,2]
[380975219,1755915038921,-400.0,0.00013698,2]
[380975220,1755915038931,-305.75080106,0.00013698,2]
[380975221,1755915038941,-400.0,0.00013698,2]
[380975222,1755915038950,-400.0,0.00013698,2]
[380975223,1755915038960,-400.0,0.00013698,2]
[380975224,1755915038969,-400.0,0.00013698,2]
[380975225,1755915038979,-400.0,0.00013698,2]
[380975226,1755915038988,-400.0,0.00013698,2]
[380975227,1755915038998,-400.0,0.00013698,2]
[380975228,1755915039008,-493.69,0.00013698,2]
[380975229,1755915039018,-400.0,0.00013698,2]
[380975230,1755915039028,-504.23278771,0.00013698,2]
[380975231,1755915039041,-526.89,0.00013698,2]
[380975232,1755915039053,-400.0,0.00013698,2]
[380975233,1755915039063,-400.0,0.00013698,2]
[380975234,1755915039072,-483.75,0.00013698,2]
[380975235,1755915039083,-400.0,0.00013698,2]
[380975236,1755915039093,-400.0,0.00013698,2]
[380975237,1755915039104,-400.0,0.00013698,2]
[380975238,1755915039113,-400.0,0.00013698,2]
[380975239,1755915039127,-400.0,0.00013698,2]
[380975240,1755915039137,-400.38920288,0.00013698,2]
[380975241,1755915039148,-401.41463299,0.00013698,2]
[380975242,1755915039158,-400.0,0.00013698,2]
[380975243,1755915039168,-216.51,0.00013698,2]
[380975244,1755915039178,-400.0,0.00013698,2]
[380975245,1755915039187,-400.0,0.00013698,2]
[380975246,1755915039197,-400.0,0.00013698,2]
[380975247,1755915039208,-400.0,0.00013698,2]
[380975248,1755915039217,-480.11,0.00013698,2]
[380975249,1755915039227,-400.0,0.00013698,2]
[380975250,1755915039238,-400.0,0.00013698,2]
[380975251,1755915039248,-398.0,0.00013698,2]
[380975252,1755915039258,-400.0,0.00013698,2]
[380975253,1755915039271,-400.0,0.00013698,2]
[380975254,1755915039281,-400.0,0.00013698,2]
[380975255,1755915039291,-400.0,0.00013698,2]
[380975256,1755915039300,-401.86523998,0.00013698,2]
[380975257,1755915039311,-400.0,0.00013698,2]
[380975258,1755915039320,-400.0,0.00013698,2]
[380975259,1755915039330,-400.0,0.00013698,2]
[380975260,1755915039339,-400.0,0.00013698,2]
[380975261,1755915039350,-400.0,0.00013698,2]
[380975262,1755915039361,-400.0,0.00013698,2]
[380975263,1755915039373,-400.0,0.00013698,2]
[380975264,1755915039383,-400.0,0.00013698,2]
[380975266,1755915039392,-400.0,0.00013698,2]
[380975267,1755915039402,-400.0,0.00013698,2]
[380975268,1755915039411,-400.0,0.00013698,2]
[380975269,1755915039421,-400.0,0.00013698,2]
[380975270,1755915039431,-400.0,0.00013698,2]
[380975271,1755915039440,-400.0,0.00013698,2]
[380975272,1755915039450,-400.0,0.00013698,2]
[380975273,1755915039459,-400.0,0.00013698,2]
[380975274,1755915039469,-400.0,0.00013698,2]
[380975275,1755915039480,-400.0,0.00013698,2]
[380975276,1755915039490,-400.0,0.00013698,2]
[380975277,1755915039500,-400.0,0.00013698,2]
[380975278,1755915039510,-400.0,0.00013698,2]
[380975279,1755915039519,-404.4248236,0.00013698,2]
[380975280,1755915039529,-400.0,0.00013698,2]
[380975281,1755915039539,-400.0,0.00013698,2]
[380975282,1755915039548,-400.0,0.00013698,2]
[380975283,1755915039558,-400.0,0.00013698,2]
[380975284,1755915039567,-409.70186714,0.00013698,2]
[380975285,1755915039576,-402.27441616,0.00013698,2]
[380975286,1755915039586,-400.0,0.00013698,2]
[380975287,1755915039596,-400.0,0.00013698,2]
[380975288,1755915039605,-400.0,0.00013698,2]
[380975289,1755915039615,-400.0,0.00013698,2]
[380975290,1755915039626,-400.0,0.00013698,2]
[380975291,1755915039637,-400.0,0.00013698,2]
[380975292,1755915039647,-400.0,0.00013698,2]
[380975293,1755915039657,-401.49321405,0.00013698,2]
[380975294,1755915039667,-400.0,0.00013698,2]
[380975295,1755915039676,-400.0,0.00013698,2]
[380975296,1755915039686,-539.89,0.00013698,2]
[380975297,1755915039696,-400.0,0.00013698,2]
[380975298,1755915039705,-590.35,0.00013698,2]
[380975299,1755915039714,-400.0,0.00013698,2]
[380975300,1755915039724,-400.0,0.00013698,2]
[380975301,1755915039733,-400.0,0.00013698,2]
[380975302,1755915039743,-400.0,0.00013698,2]
[380975303,1755915039752,-400.0,0.00013698,2]
[380975304,1755915039762,-400.0,0.00013698,2]
[380975305,1755915039772,-400.0,0.00013698,2]
[380975306,1755915039781,-400.0,0.00013698,2]
[380975307,1755915039791,-400.0,0.00013698,2]
[380975308,1755915039800,-576.58,0.00013698,2]
[380975309,1755915039810,-400.0,0.00013698,2]
[380975310,1755915039819,-400.0,0.00013698,2]
[380975311,1755915039828,-448.1,0.00013698,2]
[380975312,1755915039838,-400.0,0.00013698,2]
[380975313,1755915039847,-400.0,0.00013698,2]
[380975314,1755915039857,-400.0,0.00013698,2]
[380975316,1755915039867,-400.0,0.00013698,2]
[380975318,1755915039877,-400.0,0.00013698,2]
[380975320,1755915039887,-400.0,0.00013698,2]
[380975322,1755915039896,-400.0,0.00013698,2]
[380975324,1755915039906,-517.7135478,0.00013698,2]
[380975326,1755915039924,-400.0,0.00013698,2]
[380975328,1755915039940,-400.0,0.00013698,2]
[380975330,1755915039949,-400.0,0.00013698,2]
[380975332,1755915039958,-400.0,0.00013698,2]
[380975334,1755915039968,-400.0,0.00013698,2]
[380975336,1755915039977,-262.70298317,0.00013698,2]
[380975338,1755915039987,-400.0,0.00013698,2]
[380975340,1755915039996,-400.0,0.00013698,2]
[380975342,1755915040006,-400.0,0.00013698,2]
[380975344,1755915040015,-400.0,0.00013698,2]
[380975346,1755915040025,-400.0,0.00013698,2]
[380975348,1755915040035,-400.0,0.00013698,2]
[380975349,1755915040044,-400.0,0.00013698,2]
[380975352,1755915040054,-400.0,0.00013698,2]
[380975354,1755915040063,-474.35,0.00013698,2]
[380975356,1755915040074,-152.37605892,0.00013698,2]
[380975357,1755915040084,-400.0,0.00013698,2]
[380975359,1755915040093,-400.0,0.00013698,2]
[380975361,1755915040102,-400.0,0.00013698,2]
[380975363,1755915040112,-400.0,0.00013698,2]
[380975366,1755915040122,-559.6,0.00013698,2]
[380975367,1755915040132,-400.0,0.00013698,2]
[380975370,1755915040142,-462.9,0.00013698,2]
[380975372,1755915040152,-400.0,0.00013698,2]
[380975373,1755915040162,-520.24663192,0.00013698,2]
[380975376,1755915040172,-400.0,0.00013698,2]
[380975378,1755915040182,-400.0,0.00013698,2]
[380975379,1755915040191,-400.0,0.00013698,2]
[380975381,1755915040200,-400.0,0.00013698,2]
[380975383,1755915040211,-400.0,0.00013698,2]
[380975385,1755915040221,-400.0,0.00013698,2]
[380975388,1755915040231,-400.0,0.00013698,2]
[380975390,1755915040241,-510.17,0.00013698,2]
[380975392,1755915040250,-491.3,0.00013698,2]
[380975393,1755915040259,-400.0,0.00013698,2]
[380975396,1755915040273,-400.0,0.00013698,2]
[380975398,1755915040286,-486.38,0.00013698,2]
[380975400,1755915040306,-400.0,0.00013698,2]
[380975402,1755915040316,-400.0,0.00013698,2]
[380975404,1755915040326,-400.0,0.00013698,2]
[380975406,1755915040335,-400.0,0.00013698,2]
[380975408,1755915040347,-400.0,0.00013698,2]
[380975410,1755915040357,-445.55,0.00013698,2]
[380975412,1755915040368,-526.33,0.00013698,2]
[380975414,1755915040380,-400.0,0.00013698,2]
[380975416,1755915040391,-400.0,0.00013698,2]
[380975418,1755915040401,-400.0,0.00013698,2]
[380975420,1755915040410,-667.87,0.00013698,2]
[380975421,1755915040419,-400.0,0.00013698,2]
[380975422,1755915040428,-400.0,0.00013698,2]
[380975423,1755915040437,-400.0,0.00013698,2]
[380975424,1755915040447,-463.55,0.00013698,2]
[380975425,1755915040456,-400.0,0.00013698,2]
[380975426,1755915040465,-400.0,0.00013698,2]
[380975427,1755915040474,-226.06157697,0.00013698,2]
[380975428,1755915040483,-400.0,0.00013698,2]
[380975429,1755915040493,-400.0,0.00013698,2]
[380975430,1755915040502,-400.0,0.00013698,2]
[380975431,1755915040511,-400.0,0.00013698,2]
[380975432,1755915040521,-400.0,0.00013698,2]
[380975433,1755915040530,-400.0,0.00013698,2]
[380975434,1755915040540,-400.0,0.00013698,2]
[380975435,1755915040549,-400.0,0.00013698,2]
[380975437,1755915040559,-400.0,0.00013698,2]
[380975439,1755915040568,-174.989948,0.00013698,2]
[380975441,1755915040578,-400.0,0.00013698,2]
[380975443,1755915040587,-400.0,0.00013698,2]
[380975445,1755915040597,-546.73,0.00013698,2]
[380975447,1755915040606,-400.0,0.00013698,2]
[380975449,1755915040617,-400.0,0.00013698,2]
[380975451,1755915040627,-400.0,0.00013698,2]
[380975453,1755915040636,-400.0,0.00013698,2]
[380975455,1755915040646,-400.0,0.00013698,2]
[380975457,1755915040657,-400.0,0.00013698,2]
[380975459,1755915040666,-400.0,0.00013698,2]
[380975461,1755915040676,-400.0,0.00013698,2]